[Event "Titled Tuesday Blitz December 13 Early 2022"]
[White "Lewtak, Damian"]
[Black "Urbina Perez, Juan Antonio"]
[WhiteFideId "1141724"]
[BlackFideId "2217368"]
[WhiteElo "2330"]
[BlackElo "2197"]
[Result "1-0"]
[Round "03"]
[TimeControl "180+1"]
[Date "2022.12.14"]
[WhiteClock "0:00:09"]
[BlackClock "0:00:08"]

1. e4 {[%clk 0:03:00]}  e5 {[%clk 0:02:57]} 2. Nf3 {[%clk 0:03:01]}  Nf6 {[%clk 0:02:57]} 3. Nxe5 {[%clk 0:03:00]}  d6 {[%clk 0:02:58]} 4. Nf3 {[%clk 0:03:00]}  Nxe4 {[%clk 0:02:59]} 5. c3 {[%clk 0:03:01]}  d5 {[%clk 0:02:58]} 6. d4 {[%clk 0:03:00]}  Bd6 {[%clk 0:02:56]} 7. Bd3 {[%clk 0:03:01]}  O-O {[%clk 0:02:55]} 8. O-O {[%clk 0:03:01]}  Bf5 {[%clk 0:02:55]} 9. Qc2 {[%clk 0:03:00]}  Re8 {[%clk 0:02:53]} 10. Nbd2 {[%clk 0:03:00]}  Nxd2 {[%clk 0:02:49]} 11. Bxd2 {[%clk 0:03:00]}  Bxd3 {[%clk 0:02:49]} 12. Qxd3 {[%clk 0:03:01]}  h6 {[%clk 0:02:48]} 13. a4 {[%clk 0:03:00]}  c6 {[%clk 0:02:48]} 14. b4 {[%clk 0:02:59]}  a6 {[%clk 0:02:46]} 15. Rab1 {[%clk 0:02:56]}  Nd7 {[%clk 0:02:46]} 16. b5 {[%clk 0:02:50]}  axb5 {[%clk 0:02:47]} 17. axb5 {[%clk 0:02:50]}  Nf6 {[%clk 0:02:47]} 18. bxc6 {[%clk 0:02:41]}  bxc6 {[%clk 0:02:47]} 19. c4 {[%clk 0:02:37]}  Rb8 {[%clk 0:02:46]} 20. cxd5 {[%clk 0:02:35]}  cxd5 {[%clk 0:02:45]} 21. h3 {[%clk 0:02:32]}  Ne4 {[%clk 0:02:42]} 22. Be3 {[%clk 0:02:28]}  Qc7 {[%clk 0:02:36]} 23. Rfc1 {[%clk 0:02:25]}  Rxb1 {[%clk 0:02:31]} 24. Qxb1 {[%clk 0:02:20]}  Qb8 {[%clk 0:02:31]} 25. Qa2 {[%clk 0:02:14]}  Qa8 {[%clk 0:02:24]} 26. Ra1 {[%clk 0:02:05]}  Qxa2 {[%clk 0:02:21]} 27. Rxa2 {[%clk 0:02:06]}  Rb8 {[%clk 0:02:21]} 28. g3 {[%clk 0:01:56]}  Rd8 {[%clk 0:02:03]} 29. Kg2 {[%clk 0:01:55]}  Rb8 {[%clk 0:02:02]} 30. Nd2 {[%clk 0:01:45]}  Nxd2 {[%clk 0:01:58]} 31. Bxd2 {[%clk 0:01:46]}  Be7 {[%clk 0:01:57]} 32. Ra5 {[%clk 0:01:40]}  Rd8 {[%clk 0:01:55]} 33. Kf1 {[%clk 0:01:33]}  Bf6 {[%clk 0:01:54]} 34. Be3 {[%clk 0:01:33]}  h5 {[%clk 0:01:53]} 35. Ke2 {[%clk 0:01:32]}  g6 {[%clk 0:01:52]} 36. Kd3 {[%clk 0:01:29]}  Kf8 {[%clk 0:01:52]} 37. g4 {[%clk 0:01:20]}  hxg4 {[%clk 0:01:49]} 38. hxg4 {[%clk 0:01:20]}  Ke7 {[%clk 0:01:44]} 39. g5 {[%clk 0:01:17]}  Bg7 {[%clk 0:01:38]} 40. Bf4 {[%clk 0:01:10]}  Rd7 {[%clk 0:01:21]} 41. Ra6 {[%clk 0:00:45]}  Rb7 {[%clk 0:01:15]} 42. Bd6+ {[%clk 0:00:45]}  Kd7 {[%clk 0:01:08]} 43. Bc5 {[%clk 0:00:44]}  Rb3+ {[%clk 0:00:55]} 44. Ke2 {[%clk 0:00:43]}  Rb2+ {[%clk 0:00:53]} 45. Kf3 {[%clk 0:00:41]}  Rb3+ {[%clk 0:00:52]} 46. Kg4 {[%clk 0:00:39]}  Rb2 {[%clk 0:00:42]} 47. Ra7+ {[%clk 0:00:33]}  Kc6 {[%clk 0:00:25]} 48. Rxf7 {[%clk 0:00:32]}  Bh8 {[%clk 0:00:25]} 49. Rf8 {[%clk 0:00:21]}  Bg7 {[%clk 0:00:23]} 50. Rc8+ {[%clk 0:00:20]}  Kd7 {[%clk 0:00:19]} 51. Rg8 {[%clk 0:00:20]}  Bxd4 {[%clk 0:00:17]} 52. Bxd4 {[%clk 0:00:19]}  Rb4 {[%clk 0:00:18]} 53. Rg7+ {[%clk 0:00:18]}  Ke8 {[%clk 0:00:16]} 54. Rxg6 {[%clk 0:00:18]}  Rxd4+ {[%clk 0:00:16]} 55. f4 {[%clk 0:00:18]}  Kf7 {[%clk 0:00:16]} 56. Rf6+ {[%clk 0:00:18]}  Kg7 {[%clk 0:00:16]} 57. Kf5 {[%clk 0:00:18]}  Ra4 {[%clk 0:00:16]} 58. Rd6 {[%clk 0:00:18]}  Ra5 {[%clk 0:00:16]} 59. Rd7+ {[%clk 0:00:17]}  Kf8 {[%clk 0:00:15]} 60. g6 {[%clk 0:00:18]}  d4+ {[%clk 0:00:15]} 61. Kf6 {[%clk 0:00:17]}  Ra6+ {[%clk 0:00:15]} 62. Kg5 {[%clk 0:00:17]}  Ra5+ {[%clk 0:00:11]} 63. f5 {[%clk 0:00:17]}  Ra8 {[%clk 0:00:11]} 64. Rxd4 {[%clk 0:00:17]}  Kg8 {[%clk 0:00:12]} 65. Rd7 {[%clk 0:00:16]}  Rf8 {[%clk 0:00:12]} 66. f6 {[%clk 0:00:16]}  Ra8 {[%clk 0:00:11]} 67. Rg7+ {[%clk 0:00:16]}  Kh8 {[%clk 0:00:10]} 68. Rh7+ {[%clk 0:00:16]}  Kg8 {[%clk 0:00:09]} 69. f7+ {[%clk 0:00:17]}  Kf8 {[%clk 0:00:10]} 70. Kh6 {[%clk 0:00:07]}  Ke7 {[%clk 0:00:07]} 71. f8=Q+ {[%clk 0:00:08]}  Kxf8 {[%clk 0:00:07]} 72. Rh8+ {[%clk 0:00:08]}  Ke7 {[%clk 0:00:08]} 73. Rxa8 {[%clk 0:00:09]} 1-0


[Site "https://www.chess.com"]

[Event "Titled Tuesday Blitz December 13 Early 2022"]
[White "Ljukin, Sergei"]
[Black "Martinez Ramirez, Lennis"]
[WhiteFideId "14102200"]
[BlackFideId "3509079"]
[WhiteElo "2312"]
[BlackElo "2439"]
[Result "0-1"]
[Round "03"]
[TimeControl "180+1"]
[Date "2022.12.14"]
[WhiteClock "0:01:37"]
[BlackClock "0:02:21"]

1. e4 {[%clk 0:02:35]}  c5 {[%clk 0:02:57]} 2. Nf3 {[%clk 0:02:35]}  Nc6 {[%clk 0:02:57]} 3. d4 {[%clk 0:02:35]}  cxd4 {[%clk 0:02:58]} 4. Nxd4 {[%clk 0:02:35]}  Nf6 {[%clk 0:02:58]} 5. Nc3 {[%clk 0:02:36]}  e5 {[%clk 0:02:58]} 6. Ndb5 {[%clk 0:02:36]}  d6 {[%clk 0:02:58]} 7. Nd5 {[%clk 0:02:36]}  Nxd5 {[%clk 0:02:57]} 8. exd5 {[%clk 0:02:37]}  Nb8 {[%clk 0:02:56]} 9. a4 {[%clk 0:02:37]}  Be7 {[%clk 0:02:48]} 10. Be2 {[%clk 0:02:37]}  O-O {[%clk 0:02:47]} 11. O-O {[%clk 0:02:37]}  a6 {[%clk 0:02:42]} 12. Na3 {[%clk 0:02:36]}  Nd7 {[%clk 0:02:42]} 13. Nc4 {[%clk 0:02:32]}  a5 {[%clk 0:02:35]} 14. Be3 {[%clk 0:02:28]}  b6 {[%clk 0:02:24]} 15. f4 {[%clk 0:02:16]}  exf4 {[%clk 0:02:24]} 16. Bxf4 {[%clk 0:02:15]}  Nc5 {[%clk 0:02:23]} 17. Bf3 {[%clk 0:01:41]}  Ba6 {[%clk 0:02:22]} 18. Qd4 {[%clk 0:01:37]}  Bf6 {[%clk 0:02:21]} 0-1


[Site "https://www.chess.com"]

[Event "Titled Tuesday Blitz December 13 Early 2022"]
[White "Maksimenko, Viktor"]
[Black "Shapiro, Daniel"]
[WhiteFideId "13710478"]
[BlackFideId "2001780"]
[WhiteElo "2277"]
[BlackElo "2351"]
[Result "0-1"]
[Round "03"]
[TimeControl "180+1"]
[Date "2022.12.14"]
[WhiteClock "0:00:34"]
[BlackClock "0:00:19"]

1. d4 {[%clk 0:03:00]}  Nf6 {[%clk 0:02:59]} 2. c4 {[%clk 0:03:01]}  e6 {[%clk 0:02:59]} 3. Nf3 {[%clk 0:03:01]}  d5 {[%clk 0:02:58]} 4. g3 {[%clk 0:03:01]}  Bb4+ {[%clk 0:02:56]} 5. Bd2 {[%clk 0:03:01]}  Be7 {[%clk 0:02:57]} 6. Bg2 {[%clk 0:03:01]}  O-O {[%clk 0:02:57]} 7. Qc2 {[%clk 0:03:02]}  c6 {[%clk 0:02:58]} 8. h4 {[%clk 0:03:01]}  b6 {[%clk 0:02:55]} 9. h5 {[%clk 0:03:01]}  h6 {[%clk 0:02:54]} 10. Nc3 {[%clk 0:03:01]}  Ba6 {[%clk 0:02:53]} 11. e4 {[%clk 0:02:56]}  Bxc4 {[%clk 0:02:18]} 12. e5 {[%clk 0:02:40]}  Nh7 {[%clk 0:02:17]} 13. g4 {[%clk 0:02:20]}  c5 {[%clk 0:02:11]} 14. Be3 {[%clk 0:02:02]}  Nc6 {[%clk 0:02:10]} 15. Qa4 {[%clk 0:02:00]}  Nb4 {[%clk 0:01:52]} 16. b3 {[%clk 0:01:42]}  b5 {[%clk 0:01:22]} 17. Nxb5 {[%clk 0:01:37]}  Nc2+ {[%clk 0:01:17]} 18. Kd2 {[%clk 0:01:37]}  Bxb5 {[%clk 0:01:16]} 19. Qxb5 {[%clk 0:01:38]}  Nxa1 {[%clk 0:01:15]} 20. dxc5 {[%clk 0:01:35]}  Qc7 {[%clk 0:00:56]} 21. Rxa1 {[%clk 0:01:31]}  Rab8 {[%clk 0:00:53]} 22. Qd3 {[%clk 0:01:23]}  Bxc5 {[%clk 0:00:46]} 23. Bf1 {[%clk 0:01:15]}  Rfc8 {[%clk 0:00:43]} 24. Nd4 {[%clk 0:01:08]}  Bb4+ {[%clk 0:00:37]} 25. Kd1 {[%clk 0:01:04]}  Qxe5 {[%clk 0:00:36]} 26. f4 {[%clk 0:01:01]}  Qe4 {[%clk 0:00:36]} 27. Qxe4 {[%clk 0:01:01]}  dxe4 {[%clk 0:00:37]} 28. Bc4 {[%clk 0:01:01]}  Nf6 {[%clk 0:00:36]} 29. Be2 {[%clk 0:00:59]}  Nd5 {[%clk 0:00:36]} 30. Bd2 {[%clk 0:00:53]}  Rd8 {[%clk 0:00:33]} 31. Nc6 {[%clk 0:00:50]}  Ne3+ {[%clk 0:00:25]} 32. Ke1 {[%clk 0:00:48]}  Bxd2+ {[%clk 0:00:26]} 33. Kf2 {[%clk 0:00:48]}  Nc2 {[%clk 0:00:22]} 34. Rh1 {[%clk 0:00:43]}  Bxf4 {[%clk 0:00:22]} 35. Nxb8 {[%clk 0:00:41]}  Rxb8 {[%clk 0:00:21]} 36. Bc4 {[%clk 0:00:36]}  Rd8 {[%clk 0:00:20]} 37. Rh3 {[%clk 0:00:33]}  Rd2+ {[%clk 0:00:20]} 38. Kf1 {[%clk 0:00:33]}  Ne3+ {[%clk 0:00:20]} 39. Ke1 {[%clk 0:00:33]}  Nxc4 {[%clk 0:00:20]} 40. bxc4 {[%clk 0:00:33]}  Rxa2 {[%clk 0:00:20]} 41. Rb3 {[%clk 0:00:34]}  e3 {[%clk 0:00:19]} 42. g5 {[%clk 0:00:34]}  Bg3+ {[%clk 0:00:19]} 0-1


[Site "https://www.chess.com"]

[Event "Titled Tuesday Blitz December 13 Early 2022"]
[White "Maksimovic, Bojan"]
[Black "Jakubowska, Anna"]
[WhiteFideId "14408120"]
[BlackFideId "1121952"]
[WhiteElo "2462"]
[BlackElo "2001"]
[Result "1-0"]
[Round "03"]
[TimeControl "180+1"]
[Date "2022.12.14"]
[WhiteClock "0:00:01"]
[BlackClock "0:00:34"]

1. e4 {[%clk 0:03:00]}  c6 {[%clk 0:02:59]} 2. d3 {[%clk 0:02:56]}  d5 {[%clk 0:02:59]} 3. Nf3 {[%clk 0:02:57]}  g6 {[%clk 0:02:58]} 4. e5 {[%clk 0:02:56]}  Bg7 {[%clk 0:02:58]} 5. d4 {[%clk 0:02:56]}  Bg4 {[%clk 0:02:53]} 6. Nbd2 {[%clk 0:02:52]}  f6 {[%clk 0:02:53]} 7. exf6 {[%clk 0:02:32]}  exf6 {[%clk 0:02:48]} 8. h3 {[%clk 0:02:32]}  Bxf3 {[%clk 0:02:41]} 9. Nxf3 {[%clk 0:02:31]}  Ne7 {[%clk 0:02:42]} 10. Bd3 {[%clk 0:02:30]}  O-O {[%clk 0:02:41]} 11. O-O {[%clk 0:02:31]}  Nd7 {[%clk 0:02:39]} 12. c4 {[%clk 0:02:29]}  f5 {[%clk 0:02:38]} 13. Re1 {[%clk 0:02:26]}  Nf6 {[%clk 0:02:38]} 14. Ng5 {[%clk 0:02:17]}  Qd7 {[%clk 0:02:35]} 15. Ne6 {[%clk 0:02:16]}  Rfe8 {[%clk 0:02:32]} 16. Nxg7 {[%clk 0:02:13]}  Kxg7 {[%clk 0:02:33]} 17. c5 {[%clk 0:02:10]}  Neg8 {[%clk 0:02:28]} 18. Bf4 {[%clk 0:02:08]}  h6 {[%clk 0:02:24]} 19. Be5 {[%clk 0:02:04]}  Kh7 {[%clk 0:02:23]} 20. b4 {[%clk 0:02:00]}  Qf7 {[%clk 0:02:04]} 21. Qd2 {[%clk 0:01:51]}  Nd7 {[%clk 0:02:04]} 22. Bd6 {[%clk 0:01:50]}  Rxe1+ {[%clk 0:02:01]} 23. Rxe1 {[%clk 0:01:49]}  Re8 {[%clk 0:02:02]} 24. a4 {[%clk 0:01:47]}  a6 {[%clk 0:01:58]} 25. b5 {[%clk 0:01:43]}  axb5 {[%clk 0:01:58]} 26. axb5 {[%clk 0:01:44]}  Rxe1+ {[%clk 0:01:53]} 27. Qxe1 {[%clk 0:01:44]}  Ngf6 {[%clk 0:01:51]} 28. f3 {[%clk 0:01:35]}  Kg7 {[%clk 0:01:49]} 29. bxc6 {[%clk 0:01:13]}  bxc6 {[%clk 0:01:48]} 30. Ba6 {[%clk 0:01:13]}  Nf8 {[%clk 0:01:19]} 31. Qe5 {[%clk 0:01:07]}  Kg8 {[%clk 0:01:07]} 32. Bb7 {[%clk 0:00:40]}  Qxb7 {[%clk 0:00:42]} 33. Qxf6 {[%clk 0:00:30]}  Qf7 {[%clk 0:00:42]} 34. Qd8 {[%clk 0:00:25]}  Kg7 {[%clk 0:00:42]} 35. Bxf8+ {[%clk 0:00:21]}  Qxf8 {[%clk 0:00:42]} 36. Qd7+ {[%clk 0:00:16]}  Kf6 {[%clk 0:00:40]} 37. Qxc6+ {[%clk 0:00:12]}  Kg5 {[%clk 0:00:40]} 38. Qxd5 {[%clk 0:00:12]}  Qb8 {[%clk 0:00:40]} 39. Qe5 {[%clk 0:00:11]}  Qb1+ {[%clk 0:00:40]} 40. Kh2 {[%clk 0:00:09]}  h5 {[%clk 0:00:38]} 41. c6 {[%clk 0:00:06]}  h4 {[%clk 0:00:36]} 42. c7 {[%clk 0:00:06]}  Qc1 {[%clk 0:00:36]} 43. f4+ {[%clk 0:00:04]}  Kh5 {[%clk 0:00:34]} 44. Qh8# {[%clk 0:00:01]} 1-0


[Site "https://www.chess.com"]

[Event "Titled Tuesday Blitz December 13 Early 2022"]
[White "Manukian, Artak"]
[Black "Moiseenko, Alexander"]
[WhiteFideId "13301373"]
[BlackFideId "14102560"]
[WhiteElo "2542"]
[BlackElo "2846"]
[Result "0-1"]
[Round "03"]
[TimeControl "180+1"]
[Date "2022.12.14"]
[WhiteClock "0:01:09"]
[BlackClock "0:00:56"]

1. e4 {[%clk 0:03:00]}  c5 {[%clk 0:02:56]} 2. Nf3 {[%clk 0:03:00]}  e6 {[%clk 0:02:56]} 3. c3 {[%clk 0:03:00]}  Nf6 {[%clk 0:02:52]} 4. e5 {[%clk 0:03:00]}  Nd5 {[%clk 0:02:52]} 5. d4 {[%clk 0:03:01]}  cxd4 {[%clk 0:02:53]} 6. cxd4 {[%clk 0:03:02]}  d6 {[%clk 0:02:54]} 7. Nc3 {[%clk 0:03:02]}  Nxc3 {[%clk 0:02:53]} 8. bxc3 {[%clk 0:03:02]}  Nc6 {[%clk 0:02:52]} 9. Bd3 {[%clk 0:03:02]}  dxe5 {[%clk 0:02:52]} 10. dxe5 {[%clk 0:03:02]}  Qa5 {[%clk 0:02:46]} 11. O-O {[%clk 0:03:00]}  Nxe5 {[%clk 0:02:44]} 12. Nxe5 {[%clk 0:02:59]}  Qxe5 {[%clk 0:02:45]} 13. Rb1 {[%clk 0:02:55]}  Bd6 {[%clk 0:02:42]} 14. Bb5+ {[%clk 0:02:52]}  Ke7 {[%clk 0:02:41]} 15. f4 {[%clk 0:02:51]}  Qc5+ {[%clk 0:02:40]} 16. Kh1 {[%clk 0:02:51]}  Rd8 {[%clk 0:02:38]} 17. Qg4 {[%clk 0:02:42]}  Kf8 {[%clk 0:02:37]} 18. Qh3 {[%clk 0:02:31]}  Kg8 {[%clk 0:02:26]} 19. Be3 {[%clk 0:02:21]}  Qc7 {[%clk 0:02:16]} 20. Bd3 {[%clk 0:02:04]}  g6 {[%clk 0:02:16]} 21. Rb3 {[%clk 0:01:44]}  b6 {[%clk 0:02:01]} 22. c4 {[%clk 0:01:30]}  Bb7 {[%clk 0:01:23]} 23. Be2 {[%clk 0:01:22]}  Bf8 {[%clk 0:01:13]} 24. f5 {[%clk 0:01:09]}  exf5 {[%clk 0:01:12]} 25. Bg5 {[%clk 0:01:08]}  Re8 {[%clk 0:01:05]} 26. Bf6 {[%clk 0:01:09]}  Rxe2 {[%clk 0:00:55]} 27. Qxh7+ {[%clk 0:01:09]}  Kxh7 {[%clk 0:00:55]} 28. Rh3+ {[%clk 0:01:09]}  Bh6 {[%clk 0:00:56]} 0-1


[Site "https://www.chess.com"]

[Event "Titled Tuesday Blitz December 13 Early 2022"]
[White "Miller, Luke C"]
[Black "Rohith Krishna S"]
[WhiteFideId "2096935"]
[BlackFideId "46617051"]
[WhiteElo "2496"]
[BlackElo "2270"]
[Result "1-0"]
[Round "03"]
[TimeControl "180+1"]
[Date "2022.12.14"]
[WhiteClock "0:00:03"]
[BlackClock "0:00:19"]

1. e4 {[%clk 0:01:26]}  e5 {[%clk 0:02:49]} 2. f4 {[%clk 0:01:25]}  exf4 {[%clk 0:02:49]} 3. Nf3 {[%clk 0:01:24]}  g5 {[%clk 0:02:47]} 4. h4 {[%clk 0:01:23]}  g4 {[%clk 0:02:47]} 5. Ne5 {[%clk 0:01:24]}  h5 {[%clk 0:02:32]} 6. Bc4 {[%clk 0:01:20]}  Nh6 {[%clk 0:02:32]} 7. d4 {[%clk 0:01:16]}  d6 {[%clk 0:02:31]} 8. Nd3 {[%clk 0:01:14]}  Be7 {[%clk 0:02:32]} 9. Bxf4 {[%clk 0:01:10]}  Be6 {[%clk 0:02:24]} 10. d5 {[%clk 0:01:07]}  Bd7 {[%clk 0:02:23]} 11. g3 {[%clk 0:01:05]}  a5 {[%clk 0:02:19]} 12. Nc3 {[%clk 0:01:04]}  c6 {[%clk 0:02:13]} 13. Qd2 {[%clk 0:01:03]}  Bf8 {[%clk 0:02:04]} 14. dxc6 {[%clk 0:01:00]}  bxc6 {[%clk 0:02:04]} 15. Rf1 {[%clk 0:00:59]}  a4 {[%clk 0:02:04]} 16. Bg5 {[%clk 0:00:57]}  Qb6 {[%clk 0:02:02]} 17. Qf4 {[%clk 0:00:55]}  f5 {[%clk 0:01:54]} 18. exf5 {[%clk 0:00:50]}  Bc8 {[%clk 0:01:05]} 19. O-O-O {[%clk 0:00:43]}  Kd7 {[%clk 0:01:03]} 20. Ne5+ {[%clk 0:00:35]}  Kc7 {[%clk 0:01:03]} 21. Ng6 {[%clk 0:00:36]}  a3 {[%clk 0:01:00]} 22. b3 {[%clk 0:00:33]}  Nxf5 {[%clk 0:00:59]} 23. Nxh8 {[%clk 0:00:30]}  Bg7 {[%clk 0:01:00]} 24. Ne4 {[%clk 0:00:23]}  Be5 {[%clk 0:00:50]} 25. Bd8+ {[%clk 0:00:23]}  Kxd8 {[%clk 0:00:48]} 26. Qxe5 {[%clk 0:00:23]}  Qe3+ {[%clk 0:00:41]} 27. Kb1 {[%clk 0:00:23]}  Kc7 {[%clk 0:00:41]} 28. Qf4 {[%clk 0:00:19]}  Kb7 {[%clk 0:00:35]} 29. Nxd6+ {[%clk 0:00:16]}  Kc7 {[%clk 0:00:26]} 30. Ne8+ {[%clk 0:00:11]}  Kb6 {[%clk 0:00:22]} 31. Qc7+ {[%clk 0:00:10]}  Kc5 {[%clk 0:00:22]} 32. Rxf5+ {[%clk 0:00:07]}  Bxf5 {[%clk 0:00:21]} 33. Qd6+ {[%clk 0:00:04]}  Kb6 {[%clk 0:00:22]} 34. Qb4+ {[%clk 0:00:04]}  Ka7 {[%clk 0:00:19]} 35. Qa5+ {[%clk 0:00:03]}  Kb7 {[%clk 0:00:19]} 36. Nd6# {[%clk 0:00:03]} 1-0


[Site "https://www.chess.com"]

[Event "Titled Tuesday Blitz December 13 Early 2022"]
[White "Miszler, Levente"]
[Black "Koellner, Ruben Gideon"]
[WhiteFideId "763276"]
[BlackFideId "12993093"]
[WhiteElo "2176"]
[BlackElo "2303"]
[Result "1/2-1/2"]
[Round "03"]
[TimeControl "180+1"]
[Date "2022.12.14"]
[WhiteClock "0:00:11"]
[BlackClock "0:00:04"]

1. Nf3 {[%clk 0:02:51]}  Nf6 {[%clk 0:02:36]} 2. c4 {[%clk 0:02:51]}  e6 {[%clk 0:02:35]} 3. g3 {[%clk 0:02:51]}  d5 {[%clk 0:02:35]} 4. Bg2 {[%clk 0:02:51]}  Be7 {[%clk 0:02:35]} 5. O-O {[%clk 0:02:51]}  O-O {[%clk 0:02:34]} 6. b3 {[%clk 0:02:50]}  c5 {[%clk 0:02:33]} 7. Bb2 {[%clk 0:02:49]}  Nc6 {[%clk 0:02:31]} 8. e3 {[%clk 0:02:49]}  d4 {[%clk 0:02:29]} 9. exd4 {[%clk 0:02:48]}  cxd4 {[%clk 0:02:30]} 10. Re1 {[%clk 0:02:48]}  a5 {[%clk 0:02:24]} 11. a3 {[%clk 0:02:45]}  Bc5 {[%clk 0:02:08]} 12. d3 {[%clk 0:02:45]}  Re8 {[%clk 0:02:05]} 13. Nbd2 {[%clk 0:02:44]}  e5 {[%clk 0:01:58]} 14. Qc2 {[%clk 0:02:32]}  Bf5 {[%clk 0:01:56]} 15. Nh4 {[%clk 0:02:27]}  Be6 {[%clk 0:01:44]} 16. Ndf3 {[%clk 0:02:12]}  Qd6 {[%clk 0:01:40]} 17. Ng5 {[%clk 0:02:07]}  Bd7 {[%clk 0:01:37]} 18. Ne4 {[%clk 0:02:04]}  Nxe4 {[%clk 0:01:37]} 19. Bxe4 {[%clk 0:02:04]}  g6 {[%clk 0:01:37]} 20. Re2 {[%clk 0:02:00]}  Bg4 {[%clk 0:01:31]} 21. Bf3 {[%clk 0:01:59]}  Bxf3 {[%clk 0:01:20]} 22. Nxf3 {[%clk 0:01:59]}  f6 {[%clk 0:01:21]} 23. Nd2 {[%clk 0:01:49]}  f5 {[%clk 0:01:12]} 24. Rae1 {[%clk 0:01:42]}  Bxa3 {[%clk 0:01:10]} 25. Bxa3 {[%clk 0:01:42]}  Qxa3 {[%clk 0:01:11]} 26. f4 {[%clk 0:01:42]}  Qc5 {[%clk 0:01:07]} 27. fxe5 {[%clk 0:01:40]}  Rxe5 {[%clk 0:01:07]} 28. Kg2 {[%clk 0:01:40]}  Rae8 {[%clk 0:01:06]} 29. Nf3 {[%clk 0:01:39]}  Re3 {[%clk 0:00:59]} 30. Qb2 {[%clk 0:01:34]}  h6 {[%clk 0:00:49]} 31. Rxe3 {[%clk 0:01:34]}  Rxe3 {[%clk 0:00:46]} 32. Rxe3 {[%clk 0:01:30]}  dxe3 {[%clk 0:00:46]} 33. d4 {[%clk 0:01:30]}  Qe7 {[%clk 0:00:41]} 34. d5 {[%clk 0:01:29]}  Nb4 {[%clk 0:00:40]} 35. Ne5 {[%clk 0:01:21]}  Kh7 {[%clk 0:00:33]} 36. Kf3 {[%clk 0:01:19]}  g5 {[%clk 0:00:23]} 37. Kxe3 {[%clk 0:01:15]}  Qf6 {[%clk 0:00:17]} 38. Nd3 {[%clk 0:01:02]}  Qxb2 {[%clk 0:00:14]} 39. Nxb2 {[%clk 0:01:03]}  Kg6 {[%clk 0:00:13]} 40. Na4 {[%clk 0:01:02]}  Na6 {[%clk 0:00:11]} 41. Kd4 {[%clk 0:00:58]}  Kf6 {[%clk 0:00:11]} 42. c5 {[%clk 0:00:59]}  h5 {[%clk 0:00:10]} 43. Nb6 {[%clk 0:00:53]}  f4 {[%clk 0:00:10]} 44. gxf4 {[%clk 0:00:52]}  gxf4 {[%clk 0:00:11]} 45. Nd7+ {[%clk 0:00:49]}  Kf5 {[%clk 0:00:09]} 46. c6 {[%clk 0:00:40]}  bxc6 {[%clk 0:00:09]} 47. dxc6 {[%clk 0:00:41]}  Nc7 {[%clk 0:00:09]} 48. Ne5 {[%clk 0:00:35]}  Ne6+ {[%clk 0:00:07]} 49. Kd5 {[%clk 0:00:35]}  Nc7+ {[%clk 0:00:07]} 50. Kd6 {[%clk 0:00:32]}  Nb5+ {[%clk 0:00:07]} 51. Kd5 {[%clk 0:00:19]}  Nc3+ {[%clk 0:00:05]} 52. Kd4 {[%clk 0:00:13]}  Nb5+ {[%clk 0:00:04]} 53. Kd5 {[%clk 0:00:13]}  Nc7+ {[%clk 0:00:05]} 54. Kd6 {[%clk 0:00:12]}  Ne8+ {[%clk 0:00:04]} 55. Kd5 {[%clk 0:00:11]}  Nc7+ {[%clk 0:00:04]} 1/2-1/2


[Site "https://www.chess.com"]

[Event "Titled Tuesday Blitz December 13 Early 2022"]
[White "Mitrovic, Darko R"]
[Black "Bogaudinov, Rushan"]
[WhiteFideId "927023"]
[BlackFideId "4129288"]
[WhiteElo "2150"]
[BlackElo "2028"]
[Result "0-1"]
[Round "03"]
[TimeControl "180+1"]
[Date "2022.12.14"]
[WhiteClock "0:00:01"]
[BlackClock "0:00:12"]

1. d4 {[%clk 0:03:00]}  Nf6 {[%clk 0:02:53]} 2. c4 {[%clk 0:02:59]}  e6 {[%clk 0:02:53]} 3. Nf3 {[%clk 0:02:59]}  c5 {[%clk 0:02:54]} 4. d5 {[%clk 0:02:58]}  d6 {[%clk 0:02:54]} 5. Nc3 {[%clk 0:02:58]}  g6 {[%clk 0:02:37]} 6. g3 {[%clk 0:02:56]}  Bg7 {[%clk 0:02:36]} 7. Bg2 {[%clk 0:02:57]}  O-O {[%clk 0:02:36]} 8. O-O {[%clk 0:02:58]}  exd5 {[%clk 0:02:35]} 9. cxd5 {[%clk 0:02:57]}  b5 {[%clk 0:02:34]} 10. Nxb5 {[%clk 0:02:55]}  Ba6 {[%clk 0:02:23]} 11. a4 {[%clk 0:02:50]}  Bxb5 {[%clk 0:02:19]} 12. axb5 {[%clk 0:02:50]}  Nbd7 {[%clk 0:02:19]} 13. Nd2 {[%clk 0:02:12]}  Re8 {[%clk 0:02:12]} 14. Nc4 {[%clk 0:02:06]}  Nb6 {[%clk 0:02:11]} 15. Na5 {[%clk 0:02:02]}  Qd7 {[%clk 0:01:52]} 16. Nc6 {[%clk 0:02:00]}  Ne4 {[%clk 0:01:43]} 17. f3 {[%clk 0:01:47]}  Nf6 {[%clk 0:01:37]} 18. e4 {[%clk 0:01:46]}  Qc7 {[%clk 0:01:36]} 19. Re1 {[%clk 0:01:30]}  Nfd7 {[%clk 0:01:36]} 20. Bf1 {[%clk 0:01:26]}  Ne5 {[%clk 0:01:34]} 21. Kg2 {[%clk 0:01:22]}  h5 {[%clk 0:01:33]} 22. h4 {[%clk 0:01:15]}  Kh7 {[%clk 0:01:31]} 23. Qc2 {[%clk 0:01:11]}  Rf8 {[%clk 0:01:29]} 24. Bf4 {[%clk 0:01:09]}  f5 {[%clk 0:01:24]} 25. exf5 {[%clk 0:01:07]}  Rxf5 {[%clk 0:01:23]} 26. Bxe5 {[%clk 0:00:58]}  Bxe5 {[%clk 0:01:23]} 27. Nxe5 {[%clk 0:00:57]}  dxe5 {[%clk 0:01:21]} 28. Bd3 {[%clk 0:00:52]}  Rf6 {[%clk 0:01:20]} 29. Be4 {[%clk 0:00:51]}  Qd6 {[%clk 0:01:16]} 30. Ra6 {[%clk 0:00:44]}  c4 {[%clk 0:01:02]} 31. Rea1 {[%clk 0:00:38]}  Rf7 {[%clk 0:00:59]} 32. Qc3 {[%clk 0:00:35]}  Rc7 {[%clk 0:00:44]} 33. Qc2 {[%clk 0:00:31]}  Kg7 {[%clk 0:00:42]} 34. Bxg6 {[%clk 0:00:24]}  Qxg6 {[%clk 0:00:29]} 35. Qxg6+ {[%clk 0:00:25]}  Kxg6 {[%clk 0:00:28]} 36. Rxb6+ {[%clk 0:00:25]}  axb6 {[%clk 0:00:29]} 37. Rxa8 {[%clk 0:00:25]}  Rc5 {[%clk 0:00:29]} 38. d6 {[%clk 0:00:21]}  Rd5 {[%clk 0:00:29]} 39. Rc8 {[%clk 0:00:16]}  Rxd6 {[%clk 0:00:28]} 40. Rxc4 {[%clk 0:00:15]}  Rd2+ {[%clk 0:00:27]} 41. Kh3 {[%clk 0:00:16]}  Rxb2 {[%clk 0:00:28]} 42. Rc6+ {[%clk 0:00:16]}  Kf5 {[%clk 0:00:24]} 43. Rxb6 {[%clk 0:00:16]}  Rb3 {[%clk 0:00:25]} 44. Rh6 {[%clk 0:00:13]}  Rxf3 {[%clk 0:00:22]} 45. Rxh5+ {[%clk 0:00:12]}  Ke6 {[%clk 0:00:21]} 46. Kg4 {[%clk 0:00:10]}  Rb3 {[%clk 0:00:21]} 47. b6 {[%clk 0:00:08]}  Rb4+ {[%clk 0:00:20]} 48. Kg5 {[%clk 0:00:06]}  e4 {[%clk 0:00:18]} 49. Kf4 {[%clk 0:00:04]}  Kd6 {[%clk 0:00:16]} 50. Rh6+ {[%clk 0:00:04]}  Kd5 {[%clk 0:00:16]} 51. h5 {[%clk 0:00:03]}  Rb3 {[%clk 0:00:16]} 52. Rg6 {[%clk 0:00:02]}  Rf3+ {[%clk 0:00:16]} 53. Kg4 {[%clk 0:00:02]}  Rb3 {[%clk 0:00:16]} 54. h6 {[%clk 0:00:02]}  e3 {[%clk 0:00:16]} 55. h7 {[%clk 0:00:02]}  Rb4+ {[%clk 0:00:14]} 56. Kg5 {[%clk 0:00:02]}  e2 {[%clk 0:00:14]} 57. h8=Q {[%clk 0:00:02]}  e1=Q {[%clk 0:00:14]} 58. Qd8+ {[%clk 0:00:02]}  Kc4 {[%clk 0:00:14]} 59. Qc7+ {[%clk 0:00:02]}  Kb3 {[%clk 0:00:14]} 60. Qf7+ {[%clk 0:00:01]}  Ka3 {[%clk 0:00:12]} 0-1


[Site "https://www.chess.com"]